Cogmind - Beta 15 @@@ ROGUE MODE // 2025.06.23 @ 11:06:45 Player: CL-1C0 Result: Destroyed by B-75 Beast with Magnetic Acceleration Cannon Performance ------------- Evolutions (5) 2500 Regions Visited (6) 1200 Robots Destroyed (44) 220 Value Destroyed (1003) 1003 Prototype IDs (3) 60 Alien Tech Used (0) 0 Bonus (1065) 1065 TOTAL SCORE: 6048 Bonus ------- Follower Combat Kills 65 Entered Garrisons 200 Registered with UFD 300 Met Optimus in HQ 500 Cogmind --------- Core Integrity 0/1000 Matter 28/300 Energy 100/100 System Corruption 10% Temperature Cool (0) Movement Core (50) Location -5/Garrison Parts ------- > --- POWER (1) -------- (None) > --- PROPULSION (2) --- (None) > --- UTILITY (11) ----- (None) > --- WEAPON (3) ------- (None) > --- INVENTORY (5) ---- Multitool Peak State ------------ > --- POWER ------------ Cooled Ion Engine > --- PROPULSION ------- Improved Treads Improved Treads > --- UTILITY ---------- Scrap Suit Scrap Suit Scrap Suit Advanced Heat Sink High-capacity Storage Unit Improved Targeting Computer Improved Medium Armor Plating Trap Extractor > --- WEAPON ----------- Wave Gun KE Penetrator Mini Smartbomb Launcher > --- INVENTORY -------- Neutrino Core Scrap Suit Huge Storage Unit Structural Scanner Stasis Canceller Trap Extractor Scrapoid Pod Improved Remote Datajack Improved Plasma Cutter CPS Tube CPS Tube CPS Tube Multitool Scythe Large Botcube [Rating: 72] Favorites ----------- Power Cooled Ion Engine Engine Cooled Ion Engine Propulsion Light Treads Treads Light Treads Leg Aluminum Leg Wheel Wheel Hover Unit Antigrav System Utility High-capacity Storage Unit Device Improved Heat Sink Storage High-capacity Storage Unit Processor Improved Targeting Computer Protection Improved Light Armor Plating Weapon Battle Rifle Energy Gun Wave Gun Ballistic Gun Battle Rifle Launcher Mini Smartbomb Launcher Special Weapon CPS Tube Slashing Weapon Scythe Build | -11 -10 -10 -7 -7 -5 -5 ------- Run | Yrd Mat Sub Rec Scr Fac Gar Slots Evolved 10 | . . . . . 10 . Power . | . . . . . . . Propulsion . | . . . . . . . Utility 9 | . . . . . 9 . Weapon 1 | . . . . . 1 . Parts Attached 48 | . 8 4 6 2 24 4 Power 3 | . 1 . 1 . 1 . Engine 3 | . 1 . 1 . 1 . Core . | . . . . . . . Reactor . | . . . . . . . Propulsion 10 | . 2 . 4 . 4 . Treads 7 | . 2 . 3 . 2 . Leg . | . . . . . . . Wheel 2 | . . . 1 . 1 . Hover 1 | . . . . . 1 . Flight . | . . . . . . . Utility 20 | . 3 . 1 2 12 2 Device 13 | . 1 . . 1 9 2 Storage 4 | . 2 . . 1 1 . Processor 1 | . . . . . 1 . Hackware . | . . . . . . . Protection 2 | . . . 1 . 1 . Artifact . | . . . . . . . Weapon 15 | . 2 4 . . 7 2 Energy Gun 2 | . . . . . 2 . Energy Cannon . | . . . . . . . Ballistic Gun 6 | . 2 3 . . 1 . Ballistic Cannon . | . . . . . . . Launcher 1 | . . . . . 1 . Special Weapon 5 | . . 1 . . 2 2 Impact Weapon . | . . . . . . . Slashing Weapon 1 | . . . . . 1 . Piercing Weapon . | . . . . . . . Special Melee Weapon . | . . . . . . . Unidentified Prototypes 3 | . 1 . . . 2 . Parts Lost 27 | . . 1 3 . 11 12 Power 1 | . . . . . 1 . Propulsion 8 | . . . 2 . 4 2 Utility 11 | . . . 1 . 3 7 Weapon 7 | . . 1 . . 3 3 Highest Loss Streak 11 | . . 1 2 . 9 11 To Critical Strikes 1 | . . . . . . 1 Average Backups 15 | . 10 18 17 18 14 12 Power 2 | . 2 3 3 1 . . Propulsion 2 | . 2 3 1 1 . . Utility 5 | . 2 6 6 6 5 4 Weapon 2 | . 3 3 4 2 . . Tool/Special . | . . . . . . . Unused Backups 27 | . 8 5 . 6 1 7 Power 5 | . 2 . . 2 . 1 Propulsion 5 | . 3 1 . 1 . . Utility 5 | . 1 2 . 1 . 1 Weapon 7 | . 2 2 . 2 1 . Tool/Special 5 | . . . . . . 5 Average Slot Usage (%) 91 | . 95 99 98 95 73 64 Engine 11 | . 14 14 14 14 3 3 Treads 18 | . 27 28 16 14 4 7 Wheel 5 | . . . 11 14 3 . Device 10 | . 9 14 2 . 27 25 Storage 12 | . 14 14 14 14 5 4 Protection 4 | . . . 11 9 3 3 Ballistic Gun 23 | . 27 27 28 28 6 3 Peak Build Rating 72 | . 16 16 18 24 67 72 Average Rating 23 | . 13 15 16 19 48 52 On Entrance 21 | 6 6 16 16 18 24 67 Naked Turns 48 | . . . . . . 48 Heaviest Build 103 | 13 55 55 55 95 103 83 Greatest Support 46 | 20 40 40 40 10 46 46 Greatest Overweight (x) 20 | . 1 1 5 9 10 20 Average Overweight (x) 3 | . . 1 4 5 5 1 Largest Inventory Capacity 25 | . 20 20 20 25 25 20 Average Capacity 19 | . 15 20 20 21 21 18 Most Carried 25 | . 19 20 20 25 24 20 Average Carried 17 | . 10 18 18 20 20 16 Final Capacity 25 | 8 20 20 20 25 20 5 Final Carried 25 | 6 19 20 19 25 19 1 Class Distribution -------------------- 90% | Mutant 8% | Scavenger-Mutant Dominant Class ---------------- Mutant | -10/Materials Mutant | -10/Subcaves Mutant | -7/Recycling Mutant | -7/Scraptown Mutant | -5/Factory Scavenger-Mutant | -5/Garrison Resources | -11 -10 -10 -7 -7 -5 -5 ----------- Run | Yrd Mat Sub Rec Scr Fac Gar Matter Collected 1360 | 200 223 185 333 10 354 55 Remotely . | . . . . . . . Salvage Created 2170 | . 341 185 1058 . 540 46 Parts 101 | . 33 16 28 . 22 2 Haulers Intercepted 1 | . 1 . . . . . Recyclers Shooed 9 | . 1 . 8 . . . Parts Field Recycled . | . . . . . . . Retrieved Matter . | . . . . . . . Parts Self-Destructed 9 | . . 9 . . . . Prevented . | . . . . . . . Kills | -11 -10 -10 -7 -7 -5 -5 ------- Run | Yrd Mat Sub Rec Scr Fac Gar Combat Hostiles Destroyed 22 | . 9 5 1 . 4 3 Melee 3 | . . . . . 2 1 Guns 18 | . 9 5 1 . 2 1 AOE 1 | . . . . . . 1 Classes Destroyed 14 | . 6 3 2 . 2 1 Worker 2 | . 1 . . . 1 . Builder 1 | . 1 . . . . . Hauler 1 | . 1 . . . . . Recycler 14 | . . . 12 . 2 . Mechanic 1 | . . . . . 1 . Operator 1 | . 1 . . . . . Turret 2 | . . 2 . . . . Swarmer 9 | . 5 4 . . . . Grunt 4 | . 4 . . . . . Sentry 4 | . . . 1 . 1 2 Demolisher 1 | . . . . . . 1 Programmer 3 | . . . . . 3 . Artisan 1 | . . 1 . . . . Subdweller 1 | . . 1 . . . . Best Kill Streak 8 | . 6 3 8 . 3 3 Combat Bots Only 4 | . 4 3 1 . 2 3 Max Kills in Single Turn 2 | . 2 2 1 . 1 1 Gunslinging 1 | . 1 1 . . . . Exploded 1 | . . . . . . 1 Melee 1 | . . . . . 1 1 Uniques/NPCs Destroyed . | . . . . . . . Combat | -11 -10 -10 -7 -7 -5 -5 -------- Run | Yrd Mat Sub Rec Scr Fac Gar Hostile Shots Fired 451 | . 37 71 63 . 123 157 Missed 132 | . 14 22 17 . 26 53 Hits 319 | . 23 49 46 . 97 104 Projectile 319 | . 23 49 46 . 97 104 AOE 3 | . . . . . . 3 Critical Strikes 13 | . . . . . 8 5 Damage Taken 5207 | . 286 366 340 . 1856 2359 Core 1158 | . 12 65 49 . 298 734 Absorbed by Shields . | . . . . . . . Regen/Repaired (Parts) 17 | . . . . . 10 7 Core Remaining (%) 74 | 100 . . . 49 . . Volleys Fired 135 | . 28 27 43 . 19 18 Largest 2 | . 2 2 2 . 2 2 Hottest 114 | . 60 48 50 . 114 114 Shots Fired 243 | . 56 52 86 . 26 23 Gun 223 | . 56 52 86 . 22 7 Cannon . | . . . . . . . Launcher 11 | . . . . . 2 9 Special 9 | . . . . . 2 7 Kinetic 214 | . 54 52 86 . 18 4 Thermal 14 | . 2 . . . 4 8 Explosive 11 | . . . . . 2 9 Electromagnetic . | . . . . . . . Robot Hit Streak 18 | . 18 9 12 . 15 9 Robot Miss Streak 4 | . 3 3 4 . 2 1 Penetration Max 1 | . . . . . . 1 Secondary Targets 3 | . 2 1 . . . . Max Gunslinging Chain 1 | . 1 1 . . . . Shots Hit Robots 175 | . 31 32 55 . 43 14 Core Hits 84 | . 17 11 20 . 16 20 Critical Kills 3 | . . 1 1 . 1 . Critical Parts Destroyed . | . . . . . . . Critical Strikes 8 | . . 1 1 . 6 . Destroy 3 | . . 1 1 . 1 . Sever 5 | . . . . . 5 . Melee Attacks 43 | . . . . . 28 15 Impact . | . . . . . . . Slashing 43 | . . . . . 28 15 Piercing . | . . . . . . . Sneak Attacks 7 | . . . . . 7 . Combat Hostiles . | . . . . . . . Follow-up Attacks . | . . . . . . . Damage Inflicted 3830 | . 456 413 857 . 1473 631 Guns 2192 | . 455 413 857 . 374 93 Cannons . | . . . . . . . Explosions 614 | . . . . . 162 452 Melee 995 | . . . . . 933 62 Ramming 5 | . 1 . . . 4 . Kinetic 2045 | . 444 413 857 . 285 46 Thermal 171 | . 11 . . . 89 71 Explosive 614 | . . . . . 162 452 Electromagnetic . | . . . . . . . Impact . | . . . . . . . Slashing 995 | . . . . . 933 62 Piercing . | . . . . . . . Highest Corruption 10 | . . . . . 10 10 Average Corruption 9 | . . . . . 9 10 Corruption Purged . | . . . . . . . Corruption Blocked . | . . . . . . . Effects 33 | . . . . . 14 19 Message Errors 6 | . . . . . 5 1 Matter Fused 7 | . . . . . 4 3 Heat Flow Errors 5 | . . . . . 3 2 Energy Discharges 5 | . . . . . 1 4 Parts Rejected 1 | . . . . . . 1 Data Loss (minor) 2 | . . . . . . 2 Data Loss (major) 3 | . . . . . 1 2 Misfires 3 | . . . . . . 3 Alerts 1 | . . . . . . 1 Overload Shots . | . . . . . . . Overflow Damage 45 | . . . . . 45 . Projectiles . | . . . . . . . Explosions 19 | . . . . . 19 . Melee 26 | . . . . . 26 . Knockbacks . | . . . . . . . Impact . | . . . . . . . Kinetic . | . . . . . . . Secondary . | . . . . . . . Self-Inflicted Damage 93 | . . . . . 76 17 Shots 3 | . . . . . 2 1 Rammed 3 | . 1 . . . 2 . Targets Rammed 3 | . 1 . . . 2 . Kicked . | . . . . . . . Crushed . | . . . . . . . Highest Temperature 241 | . 2 . 24 . 104 241 Average Temperature 17 | . 2 . 8 . 29 64 Received Heat Transfer 636 | . 81 66 102 . 171 216 Siege Activations . | . . . . . . . Martial Activations . | . . . . . . . Shielding Activations . | . . . . . . . Robots Disrupted . | . . . . . . . Combat Hostiles . | . . . . . . . Robots Corrupted . | . . . . . . . Combat Hostiles . | . . . . . . . Parts Fried . | . . . . . . . Impact Corruptions . | . . . . . . . Robots Melted . | . . . . . . . Combat Hostiles . | . . . . . . . Parts Melted . | . . . . . . . Heat Transferred 310 | . 25 . . . 111 174 Parts Sabotaged . | . . . . . . . Parts Stolen . | . . . . . . . Parts Stripped . | . . . . . . . Power Chain Reactions . | . . . . . . . Alert | -11 -10 -10 -7 -7 -5 -5 ------- Run | Yrd Mat Sub Rec Scr Fac Gar Maximum Alert Level . | . . . . . . . Low Security (%) 100 | . 100 . 100 . 100 100 Level 1 . | . . . . . . . Level 2 . | . . . . . . . Level 3 . | . . . . . . . Level 4 . | . . . . . . . Level 5 . | . . . . . . . High Security . | . . . . . . . Max Security . | . . . . . . . Peak Influence 194 | . 192 . 61 . 75 194 Initial 62 | . . . . . . 62 Average 42 | . 50 . 13 . 10 93 Influence Increases 1138 | . 277 255 201 . 243 162 Destroy 0b10 Robot/C 500 | . 180 120 20 . 120 60 Destroy 0b10 Robot/NC 100 | . 20 . 60 . 20 . Destroy Leader 62 | . 32 . . . 30 . Allied During Kill 10 | . . . . . 10 . Trap Triggered on 0b10 10 | . . . . . . 10 Successful Hack 16 | . . . . . 16 . Select Force Hacks 150 | . 30 . 120 . . . Destroy Structure 125 | . . . 1 . 32 92 Lose Combat Pursuer 165 | . 15 135 . . 15 . Influence Decreases 1054 | . 277 255 201 . 154 167 Entered New Map 27 | . . . . . . 27 Time Decay 847 | . 277 245 201 . 124 . Lost Part 160 | . . 10 . . 30 120 Lost Ally 20 | . . . . . . 20 Squads Dispatched 7 | . 2 . . . 5 . Investigation 3 | . 1 . . . 2 . Extermination 2 | . . . . . 2 . Reinforcement 1 | . 1 . . . . . Assault . | . . . . . . . Garrison 1 | . . . . . 1 . Intercept . | . . . . . . . Searches Triggered . | . . . . . . . Construction Impeded . | . . . . . . . Haulers Reinforced . | . . . . . . . Active Scanning Responses . | . . . . . . . Cargo Convoy Interrupts . | . . . . . . . Stealth | -11 -10 -10 -7 -7 -5 -5 --------- Run | Yrd Mat Sub Rec Scr Fac Gar Distress Signals 2 | . 2 . . . . . Communications Jammed . | . . . . . . . Distress Signals . | . . . . . . . Times Spotted 43 | . 15 8 1 . 12 7 Peak Tracking Total 7 | . 7 3 1 . 6 4 Tactical Retreats 6 | . 1 4 . . 1 . Traps | -11 -10 -10 -7 -7 -5 -5 ------- Run | Yrd Mat Sub Rec Scr Fac Gar Traps Triggered 3 | . 1 . . . 1 1 Indirectly . | . . . . . . . Trap Hack Attempts . | . . . . . . . Triggered . | . . . . . . . Disarmed . | . . . . . . . Reprogrammed . | . . . . . . . Reused 1 | . . . . . . 1 Traps Extracted . | . . . . . . . Installed 1 | . . . . . . 1 Triggered 1 | . . . . . . 1 Most Traps Carried 3 | . . . . 3 3 3 Machines | -11 -10 -10 -7 -7 -5 -5 ---------- Run | Yrd Mat Sub Rec Scr Fac Gar Machines Disabled 2 | . . 2 . . . . Max in Single Turn 1 | . . 1 . . . . Machines Repaired . | . . . . . . . Machines Dismantled . | . . . . . . . Machines Sabotaged . | . . . . . . . Overloaded Fab Kills . | . . . . . . . Hacking | -11 -10 -10 -7 -7 -5 -5 --------- Run | Yrd Mat Sub Rec Scr Fac Gar Machines Accessed 10 | . 1 . 4 2 3 . Terminals . | . . . . . . . Fabricators 1 | . . . . . 1 . Repair Stations . | . . . . . . . Recycling Units 6 | . 1 . 4 . 1 . Scanalyzers . | . . . . . . . Garrison Access 1 | . . . . . 1 . Total Hacks 20 | . 1 . 6 8 5 . Successful 16 | . 1 . 5 8 2 . Failed 4 | . . . 1 . 3 . Catastrophic 2 | . . . . . 2 . Database Lockouts . | . . . . . . . Manual 8 | . 1 . 4 . 3 . Terminals . | . . . . . . . Fabricators 1 | . . . . . 1 . Repair Stations . | . . . . . . . Recycling Units 9 | . 1 . 6 . 2 . Scanalyzers . | . . . . . . . Garrison Access 2 | . . . . . 2 . Terminal Hacks 8 | . . . . 8 . . Record 8 | . . . . 8 . . Fabricator Hacks . | . . . . . . . Repair Station Hacks . | . . . . . . . Recycling Unit Hacks 1 | . . . 1 . . . Retrieve Components 1 | . . . 1 . . . Scanalyzer . | . . . . . . . Garrison Access Hacks 1 | . . . . . 1 . Unlock Access 1 | . . . . . 1 . Unauthorized Hacks 6 | . 1 . 4 . 1 . Terminals . | . . . . . . . Fabricators 1 | . . . . . 1 . Liberate 1 | . . . . . 1 . Repair Stations . | . . . . . . . Recycling Units 5 | . 1 . 4 . . . Tunnel 5 | . 1 . 4 . . . Scanalyzers . | . . . . . . . Garrison Access . | . . . . . . . Data Cores Recovered . | . . . . . . . Used . | . . . . . . . Hacking Detections 4 | . . . 1 . 3 . Full Trace Events 2 | . . . . . 2 . Feedback Events . | . . . . . . . Feedback Blocked . | . . . . . . . Robot Schematics Acquired . | . . . . . . . Robots Built . | . . . . . . . Authchips . | . . . . . . . Time . | . . . . . . . Total Robot Build Rating . | . . . . . . . Part Schematics Acquired . | . . . . . . . Parts Built . | . . . . . . . Authchips . | . . . . . . . Time . | . . . . . . . Total Part Build Rating . | . . . . . . . Parts Repaired . | . . . . . . . Time . | . . . . . . . Parts Recycled . | . . . . . . . Recycled Matter . | . . . . . . . Retrieved Matter . | . . . . . . . Retrieved Components 5 | . . . 5 . . . Parts Scanalyzed . | . . . . . . . Part Schematics Acquired . | . . . . . . . Parts Damaged . | . . . . . . . Bothacking | -11 -10 -10 -7 -7 -5 -5 ------------ Run | Yrd Mat Sub Rec Scr Fac Gar Used RIF Installer . | . . . . . . . Robots Hacked . | . . . . . . . Non-combat . | . . . . . . . Combat . | . . . . . . . Robot Hacks Applied . | . . . . . . . Relay Couplers Released . | . . . . . . . Fabnet Peak Effective % . | . . . . . . . Robots Rewired 1 | . . . . . . 1 Allies Hacked . | . . . . . . . Hacks Repelled . | . . . . . . . Allies | -11 -10 -10 -7 -7 -5 -5 -------- Run | Yrd Mat Sub Rec Scr Fac Gar Total Allies 4 | . . . . . 3 1 Largest Group 3 | . . . . . 3 1 Highest-Rated Group 87 | . . . . . 87 30 Highest-Rated Ally 30 | . . . . . 29 30 Total Orders . | . . . . . . . Ally Attacks 16 | . . . . . 15 1 Total Damage 258 | . . . . . 226 32 Kills 2 | . . . . . 2 . Allies Corrupted . | . . . . . . . Allies Melted . | . . . . . . . Intel | -11 -10 -10 -7 -7 -5 -5 ------- Run | Yrd Mat Sub Rec Scr Fac Gar Active Infowar (turns) 989 | . . . . . 651 338 IFF 965 | . . . . . 627 338 Structural 654 | . . . . . 651 3 Robot Analysis Total . | . . . . . . . Derelict Logs Recovered 2 | . . . . 2 . . Drone Launches . | . . . . . . . Drone Recoveries . | . . . . . . . Exploration | -11 -10 -10 -7 -7 -5 -5 ------------- Run | Yrd Mat Sub Rec Scr Fac Gar Turns Passed 6087 | . 1181 1436 595 1651 651 573 Spaces Moved 2540 | 1 338 532 278 980 227 184 Core 47 | . . . . . . 47 Treads 1036 | . 321 532 17 . 29 137 Legs 18 | 1 17 . . . . . Wheels 1432 | . . . 261 980 191 . Hover 7 | . . . . . 7 . Flight . | . . . . . . . Fastest Speed 50 | 120 120 240 155 155 145 50 Average Speed 195 | 120 210 240 160 166 206 238 Slowest Speed 1050 | 120 240 240 320 215 320 1050 Overloaded Moves . | . . . . . . . Propulsion Burnouts . | . . . . . . . Robots Hopped . | . . . . . . . Potential Cave-ins . | . . . . . . . Cave-ins Triggered . | . . . . . . . Exploration Rate (%) 31 | 1 55 23 48 65 6 21 Regions Visited 6 Branch Regions 3 Pre-discovered Areas 6 | . 1 . 4 1 . . Known Exits Taken 1 | . . . . . 1 . Unknown Exits Taken 5 | 1 1 1 1 1 . . Scrap Searched 2 | . . . . 2 . . Spaces Dug 2 | . . . . . 2 . Terrain Destroyed 119 | . . . . . 14 105 Melee 2 | . . . . . 2 . Projectile 3 | . . . . . . 3 AOE 114 | . . . . . 12 102 Terrain Rammed . | . . . . . . . Walls Destroyed . | . . . . . . . Machines Disabled . | . . . . . . . Actions | -11 -10 -10 -7 -7 -5 -5 --------- Run | Yrd Mat Sub Rec Scr Fac Gar Total 3360 | . 755 642 348 1003 337 275 Wait 502 | . 353 70 19 . 20 40 Move 2535 | . 337 531 277 979 227 184 Hop . | . . . . . . . Pick Up 43 | . 18 4 1 11 7 2 Fast Attach 18 | . 3 . 2 . 13 . Attach 22 | . 2 1 2 1 12 4 Detach 7 | . . . . 1 3 3 Swap 15 | . 3 4 2 2 1 3 Drop 34 | . 10 5 2 9 5 3 Fire 135 | . 28 27 43 . 19 18 Melee 43 | . . . . . 28 15 Ram . | . . . . . . . Kick . | . . . . . . . Crush 3 | . 1 . . . 2 . Escape Stasis . | . . . . . . . Rewire 2 | . . . . . . 2 Trap 1 | . . . . . . 1 Miscellaneous . | . . . . . . . Route ------- -11/Scrapyard -10/Materials (discovered 4 exits: [*Mat x2] / [*Min] / [*Sub]) -10/Subcaves (discovered 2 exits: [*Mat] / *Rec) -7/Recycling -7/Scraptown -5/Factory (discovered 5 exits: *Fac x3 / Upp / Gar) -5/Garrison History --------- Turn | Location | Event 1 | -11/Scrapyard | Discovered new exit (range 0) 1 | -11/Scrapyard | Entered Materials 317 | -10/Materials | Build established: Mutant 497 | -10/Materials | Discovered new exit (range 9) 829 | -10/Materials | Discovered new exit (range 16) 1052 | -10/Materials | Discovered new exit (range 13) 1136 | -10/Materials | Discovered new exit (range 6) 1182 | -10/Materials | Entered Subcaves 1285 | -10/Subcaves | Discovered new exit (range 14) 2057 | -10/Subcaves | Discovered new exit (range 8) 2061 | -10/Subcaves | Shifting Twisted Machinery released Battle Rifle 2434 | -10/Subcaves | Ambushed by angry Subdweller bent on revenge 2618 | -10/Subcaves | Entered Recycling 2695 | -7/Recycling | Core integrity fell below 50% 3176 | -7/Recycling | Scanned before Scraplab entrance 3198 | -7/Recycling | Entered Scraplab 3210 | -7/Recycling | Discovered new exit (range 3) 3213 | -7/Recycling | Entered Scraptown 3413 | -7/Scraptown | Visited UFD Registry 3413 | -7/Scraptown | Registered with UFD as "Gearcircuit" 3469 | -7/Scraptown | Visited The Evicted 3512 | -7/Scraptown | Scanned Subdweller tech in exchange for log data 3515 | -7/Scraptown | Learned 12 Factory zone layouts 3517 | -7/Scraptown | Learned location of Zion (-7) 3587 | -7/Scraptown | Visited Cyclists 3598 | -7/Scraptown | Entered Cyclist Reading Room 3674 | -7/Scraptown | Visited Spacefarers 3719 | -7/Scraptown | Visited TADAMA 3756 | -7/Scraptown | Visited Red Mages 3835 | -7/Scraptown | Visited LU-1G1's Boring Crew 3883 | -7/Scraptown | Visited Abandonware Association 3899 | -7/Scraptown | Learned abandonware demo "OVRCLOCK.EXE" 3905 | -7/Scraptown | Learned abandonware demo "REVENGE.EXE" 3944 | -7/Scraptown | Visited Science Guys 4014 | -7/Scraptown | Delivered Scrap Shield to a Scientist 4140 | -7/Scraptown | Visited Curators Association 4175 | -7/Scraptown | Visited Scrap Suit Storage 4198 | -7/Scraptown | Visited Supply Room 4237 | -7/Scraptown | Visited Supply Room 4268 | -7/Scraptown | Visited Science Testing Area 4312 | -7/Scraptown | Visited Scrapoid Pod Storage 4343 | -7/Scraptown | Visited Botcube Research 4350 | -7/Scraptown | Found Lrg. Botcube 4388 | -7/Scraptown | Found Scrapoid Pod 4449 | -7/Scraptown | Found Scrap Suit 4455 | -7/Scraptown | Found Scrap Suit 4458 | -7/Scraptown | Found Scrap Suit 4470 | -7/Scraptown | Found Scrap Suit 4615 | -7/Scraptown | Discovered new exit (range 3) 4742 | -7/Scraptown | Met Optimus 4742 | -7/Scraptown | Accepted into 0bPrime 4864 | -7/Scraptown | Entered Factory 4864 | -5/Factory | Evolved 10 slots: Utility x9, Weapon x1 4865 | -5/Factory | Identified exit to Factory 4865 | -5/Factory | Identified exit to Upper Caves 5054 | -5/Factory | Discovered exit to Factory (range 6) 5194 | -5/Factory | Found Prototype Launcher 5194 | -5/Factory | Identified Mni. Smartbomb Launcher 5198 | -5/Factory | System corruption reached 10% 5221 | -5/Factory | Lost 9 parts (1p2n3u3w) 5500 | -5/Factory | Garrison activated, responded to threat 5515 | -5/Factory | Identified exit to Garrison 5515 | -5/Factory | Entered Garrison 5653 | -5/Garrison | Build established: Scavenger-Mutant 5777 | -5/Garrison | Spotted B-75 Beast 5961 | -5/Garrison | Core integrity fell below 50% 5983 | -5/Garrison | Core integrity fell below 20% 5984 | -5/Garrison | Lost 11 parts (2n6u3w) 6088 | -5/Garrison | Destroyed by B-75 Beast with Magnetic Acceleration Cannon Last Messages --------------- 05953_ Scrap Suit destroyed. 05954_ The unstable cave ceiling collapses. 05963_ Slug penetrates Earth. 05963_ Penetrated by Slug. 05981_ The unstable cave ceiling collapses. 05983_ Slug penetrates Earth. 05986_ Penetrated by Slug. 05992_ Slug penetrates Wall. 06014_ System corrupted: Substantial component data lost. 06016_ Dropped Hcp. Storage Unit. 06017_ Dropped Scrapoid Pod. 06017_ Dropped Lrg. Botcube. 06019_ Acquired Multitool. 06023_ Attempting to rewire D-63 Destroyer. 06039_ System corrupted: Energy discharge (-11). 06051_ Machine disabled. 06054_ Attempting to rewire L-41 Fighter. 06054_ L-41 Fighter rewired. 06060_ System corrupted: Component data lost. 06067_ Fighter 6a suffers critical hit (Destroy). Map ----- +----------------------------------------------------+ | | | | | | | | | | | | | | | | | | | | | | | | | | | | | | | ?????????????????????????????????????????????????? | | ?????????????????????????????????????????????????? | | ?????????????????????????????????????????????????? | | ?????????????????????????????????????????????????? | | ?????????????????????????????????????????????????? | | ?????????????????????????????????????????????????? | | ?????????????????????????????????????????????????? | | ?????????????????????????????????????????????????? | | ???????????????????????###################???????? | | ???????????????????????#"""""" """## #???????? | | ???????????????????????#"@ ! "## #???????? | | ???????????????????????#" "! """## #???????? | | ???????????????????????#"x!% !!"## ###???????? | | ???????????????????????#""% [ ""## #?????????? | | ???????????????????????#"" ""## #?????????? | | ???????????????????????#"d % "## #?????????? | | ???????????????????????#"""| m" "## #?????????? | | ???????????????????????## !!! * "## #?????????? | | ????????????????????????# #!&| ""## #?????????? | | ???????????????????????## "[|*& ""## #?????????? | | ???????????????????????#% "!| "## #?????????? | | ???????????????????????## "!]% """## #?????????? | | ????????????????????????##"!%BB##### #?????????? | | ?????????????????????????####BB;##?# #######???? | | ??????????????????????????### " "## #???? | | ??????????????????????????# # % # #???? | | ?????????????????????????## % # "" #### #???? | | ?????????????????????????# #% % ## #??# #???? | | ?????????????????????????# # #??# "???? | | ?????????????????????????# # # #??# "???? | | ?????????????????????????## # # #??# "???? | | ????????????????????????### % " #??# #???? | | ????????????????????????# " #??# #???? | | ????????????????????????# #%^ " #??# #???? | | ????????????????????????# # # #??# ###?? | +----------------------------------------------------+ Best States ------------- Heat Dissipation 59 Energy Generation 14 Energy Capacity 280 Matter Stores 300 Matter Capacity 300 Sight Range 16 Terrain Scan Density 10 Armor Coverage 225 Evasion (%) 55 Targeting Accuracy 6 Recoil Reduction 2 Particle Charging 20 Trap Extractor Capacity 8 Item Schematics ----------------- None Robot Schematics ------------------ None Fabricated ------------ Nothing Repaired ---------- Nothing Alien Tech Used ----------------- None Achievements -------------- None Challenges ------------ None Game ------ Seed MolecularHypercooledBooster Manual? 0 Play Time 00:33:48 Cumulative 557.6 hours Start 2025.06.23 @ 10:26:32 End 2025.06.23 @ 11:06:45 Sessions 1 Manual Loads 0 Difficulty Rogue Special Mode None Game No. 671 Rogue 671 Adventurer 0 Explorer 0 Win Type - Total 20 Types 14/0/5/1/0/0/0/0/0/0 Lore% 85 Gallery% 83 Achievement% 83 Wizard Run 0 Options --------- Layout 0 ASCII 0 Keyboard 0 Movement Numpad Keybinds 0 Fullscreen 1 Font 18/SmallcapsGlow Map View 76x50 Zoom Use 0% Tactical HUD 1 Map Filters NONE Filters NONE Steam 1 RUN: f3205a5a-9735-463a-bed2-2842dce1a9ca